Cogmind - Beta 15 @@@ ROGUE MODE // 2025.07.14 @ 02:43:52 Player: vilepis Result: Destroyed by D-53 Grenadier with Mini Grenade Launcher Performance ------------- Evolutions (0) 0 Regions Visited (2) 400 Robots Destroyed (21) 105 Value Destroyed (625) 625 Prototype IDs (2) 40 Alien Tech Used (0) 0 Bonus (7) 7 TOTAL SCORE: 1177 Bonus ------- Follower Combat Kills 7 Cogmind --------- Core Integrity 0/250 Matter 300/300 Energy 100/100 System Corruption 0% Temperature Cool (12) Movement Core (50) Location -10/Mines Parts ------- > --- POWER (1) -------- (None) > --- PROPULSION (2) --- (None) > --- UTILITY (2) ------ Targeting Computer > --- WEAPON (2) ------- (None) > --- INVENTORY (5) ---- Light Ion Engine Aluminum Leg Aluminum Leg Small Storage Unit Mining Laser Peak State ------------ > --- POWER ------------ Ion Engine > --- PROPULSION ------- Aluminum Leg Aluminum Leg > --- UTILITY ---------- Improved Heat Sink Targeting Computer > --- WEAPON ----------- Particle Gun Beam Cannon > --- INVENTORY -------- Light Ion Engine Aluminum Leg Aluminum Leg Small Storage Unit Small Laser [Rating: 10] Favorites ----------- Power Ion Engine Engine Ion Engine Propulsion Aluminum Leg Leg Aluminum Leg Wheel Wheel Utility Targeting Computer Device Improved Heat Sink Storage Small Storage Unit Processor Targeting Computer Weapon Beam Cannon Energy Gun Particle Gun Energy Cannon Beam Cannon Ballistic Gun Light Assault Rifle Build | -11 -10 -10 ------- Run | Yrd Mat Min Slots Evolved . | . . . Power . | . . . Propulsion . | . . . Utility . | . . . Weapon . | . . . Parts Attached 20 | 7 13 . Power 3 | 1 2 . Engine 3 | 1 2 . Core . | . . . Reactor . | . . . Propulsion 8 | 2 6 . Treads . | . . . Leg 6 | . 6 . Wheel 2 | 2 . . Hover . | . . . Flight . | . . . Utility 3 | 1 2 . Device 1 | . 1 . Storage 1 | 1 . . Processor 1 | . 1 . Hackware . | . . . Protection . | . . . Artifact . | . . . Weapon 6 | 3 3 . Energy Gun 3 | 2 1 . Energy Cannon 2 | . 2 . Ballistic Gun 1 | 1 . . Ballistic Cannon . | . . . Launcher . | . . . Special Weapon . | . . . Impact Weapon . | . . . Slashing Weapon . | . . . Piercing Weapon . | . . . Special Melee Weapon . | . . . Unidentified Prototypes . | . . . Parts Lost 8 | . 2 6 Power 2 | . 1 1 Propulsion 3 | . 1 2 Utility 1 | . . 1 Weapon 2 | . . 2 Highest Loss Streak 6 | . 1 6 To Critical Strikes . | . . . Average Backups 3 | . 3 5 Power . | . . 1 Propulsion 1 | . 1 2 Utility . | . . 1 Weapon . | . 1 1 Tool/Special . | . . . Unused Backups 1 | . . 1 Power . | . . . Propulsion . | . . . Utility . | . . . Weapon 1 | . . 1 Tool/Special . | . . . Average Slot Usage (%) 97 | . 97 99 Engine 13 | . 13 14 Leg 17 | . 15 27 Wheel 8 | . 10 . Device 9 | . 8 14 Storage 4 | . 5 . Processor 13 | . 13 14 Energy Gun 12 | . 11 14 Energy Cannon 11 | . 10 14 Ballistic Gun 4 | . 5 . Peak Build Rating 10 | 6 10 10 Average Rating 8 | 3 8 9 On Entrance 5 | . 6 10 Naked Turns . | . . . Heaviest Build 13 | 13 13 12 Greatest Support 20 | 20 20 20 Greatest Overweight (x) 1 | . 1 1 Average Overweight (x) . | . . . Largest Inventory Capacity 8 | 8 8 5 Average Capacity 5 | 6 6 5 Most Carried 5 | 1 5 5 Average Carried 3 | . 3 4 Final Capacity 8 | 8 5 5 Final Carried 5 | 1 5 5 Class Distribution -------------------- 61% | Scavenger-Mutant 38% | Mutant Dominant Class ---------------- Scavenger-Mutant | -10/Materials Scavenger-Mutant | -10/Mines Resources | -11 -10 -10 ----------- Run | Yrd Mat Min Matter Collected 446 | 115 331 . Remotely . | . . . Salvage Created 732 | . 696 36 Parts 40 | . 37 3 Haulers Intercepted . | . . . Recyclers Shooed . | . . . Parts Field Recycled . | . . . Retrieved Matter . | . . . Parts Self-Destructed . | . . . Prevented . | . . . Kills | -11 -10 -10 ------- Run | Yrd Mat Min Combat Hostiles Destroyed 20 | . 18 2 Guns 10 | . 10 . Cannons 10 | . 8 2 Classes Destroyed 3 | . 3 . Watcher 1 | . 1 . Swarmer 5 | . 3 2 Grunt 15 | . 15 . Best Kill Streak 4 | . 4 2 Combat Bots Only 4 | . 4 2 Max Kills in Single Turn 1 | . 1 1 Gunslinging . | . . . Exploded . | . . . Melee . | . . . Uniques/NPCs Destroyed . | . . . Combat | -11 -10 -10 -------- Run | Yrd Mat Min Hostile Shots Fired 98 | . 82 16 Missed 36 | . 32 4 Hits 62 | . 50 12 Projectile 62 | . 50 12 AOE 12 | . . 12 Damage Taken 1026 | . 560 466 Core 292 | . 144 148 Absorbed by Shields . | . . . Core Remaining (%) 100 | 100 . . Volleys Fired 66 | . 61 5 Largest 2 | . 2 2 Hottest 125 | . 125 125 Shots Fired 128 | . 119 9 Gun 81 | . 77 4 Cannon 47 | . 42 5 Launcher . | . . . Special . | . . . Kinetic 32 | . 32 . Thermal 96 | . 87 9 Explosive . | . . . Electromagnetic . | . . . Robot Hit Streak 11 | . 11 3 Robot Miss Streak 3 | . 3 2 Penetration Max . | . . . Secondary Targets 1 | . 1 . Max Gunslinging Chain 1 | . 1 . Shots Hit Robots 68 | . 64 4 Core Hits 34 | . 32 2 Critical Kills . | . . . Critical Parts Destroyed 1 | . 1 . Critical Strikes 3 | . 3 . Burn 2 | . 2 . Destroy 1 | . 1 . Melee Attacks . | . . . Impact . | . . . Slashing . | . . . Piercing . | . . . Sneak Attacks . | . . . Combat Hostiles . | . . . Follow-up Attacks . | . . . Damage Inflicted 889 | . 819 70 Guns 540 | . 505 35 Cannons 349 | . 314 35 Explosions . | . . . Melee . | . . . Ramming . | . . . Kinetic 164 | . 164 . Thermal 725 | . 655 70 Explosive . | . . . Electromagnetic . | . . . Impact . | . . . Slashing . | . . . Piercing . | . . . Highest Corruption . | . . . Average Corruption . | . . . Corruption Purged . | . . . Corruption Blocked . | . . . Overload Shots . | . . . Overflow Damage . | . . . Projectiles . | . . . Explosions . | . . . Melee . | . . . Knockbacks . | . . . Impact . | . . . Kinetic . | . . . Secondary . | . . . Self-Inflicted Damage . | . . . Shots . | . . . Rammed . | . . . Targets Rammed . | . . . Kicked . | . . . Crushed . | . . . Highest Temperature 224 | . 224 63 Average Temperature 60 | . 63 29 Received Heat Transfer 258 | . 258 . Effects 1 | . 1 . Interference 1 | . 1 . Siege Activations . | . . . Martial Activations . | . . . Shielding Activations . | . . . Robots Disrupted . | . . . Combat Hostiles . | . . . Robots Corrupted . | . . . Combat Hostiles . | . . . Parts Fried . | . . . Impact Corruptions . | . . . Robots Melted . | . . . Combat Hostiles . | . . . Parts Melted 4 | . 4 . Heat Transferred 1961 | . 1813 148 Parts Sabotaged . | . . . Parts Stolen . | . . . Parts Stripped . | . . . Power Chain Reactions . | . . . Alert | -11 -10 -10 ------- Run | Yrd Mat Min Maximum Alert Level 1 | . 1 . Low Security (%) 82 | 100 76 100 Level 1 17 | . 23 . Level 2 . | . . . Level 3 . | . . . Level 4 . | . . . Level 5 . | . . . High Security . | . . . Max Security . | . . . Peak Influence 243 | . 243 74 Initial 56 | . . 56 Average 102 | . 126 30 Influence Increases 545 | . 471 74 Destroy 0b10 Robot/C 420 | . 360 60 Destroy 0b10 Robot/NC 5 | . 5 . Destroy Leader 92 | . 82 10 Allied During Kill 4 | . . 4 Successful Hack 6 | . 6 . Disable Machine 15 | . 15 . Destroy Structure 3 | . 3 . Influence Decreases 545 | . 325 220 Entered New Map 90 | . . 90 Time Decay 405 | . 305 100 Lost Part 30 | . 20 10 Lost Ally 20 | . . 20 Squads Dispatched 4 | . 4 . Investigation 2 | . 2 . Extermination . | . . . Reinforcement 2 | . 2 . Assault . | . . . Garrison . | . . . Intercept . | . . . Searches Triggered . | . . . Construction Impeded . | . . . Haulers Reinforced . | . . . Active Scanning Responses . | . . . Cargo Convoy Interrupts . | . . . Stealth | -11 -10 -10 --------- Run | Yrd Mat Min Distress Signals 2 | . 2 . Communications Jammed . | . . . Distress Signals . | . . . Times Spotted 31 | . 26 5 Peak Tracking Total 7 | . 7 2 Tactical Retreats . | . . . Traps | -11 -10 -10 ------- Run | Yrd Mat Min Traps Triggered 2 | . 2 . Indirectly . | . . . Trap Hack Attempts . | . . . Triggered . | . . . Disarmed . | . . . Reprogrammed . | . . . Reused . | . . . Traps Extracted . | . . . Installed . | . . . Triggered . | . . . Machines | -11 -10 -10 ---------- Run | Yrd Mat Min Machines Disabled 1 | . 1 . Max in Single Turn 1 | . 1 . Machines Repaired . | . . . Machines Dismantled . | . . . Machines Sabotaged . | . . . Overloaded Fab Kills . | . . . Hacking | -11 -10 -10 --------- Run | Yrd Mat Min Machines Accessed 4 | . 4 . Terminals 4 | . 4 . Fabricators . | . . . Repair Stations . | . . . Recycling Units . | . . . Scanalyzers . | . . . Garrison Access . | . . . Total Hacks 13 | . 13 . Successful 3 | . 3 . Failed 10 | . 10 . Catastrophic 2 | . 2 . Database Lockouts . | . . . Manual 5 | . 5 . Terminals 13 | . 13 . Fabricators . | . . . Repair Stations . | . . . Recycling Units . | . . . Scanalyzers . | . . . Garrison Access . | . . . Terminal Hacks 3 | . 3 . Prototype ID Bank 1 | . 1 . Zone Layout 2 | . 2 . Fabricator Hacks . | . . . Repair Station Hacks . | . . . Recycling Unit Hacks . | . . . Scanalyzer . | . . . Garrison Access Hacks . | . . . Unauthorized Hacks . | . . . Terminals . | . . . Fabricators . | . . . Repair Stations . | . . . Recycling Units . | . . . Scanalyzers . | . . . Garrison Access . | . . . Data Cores Recovered . | . . . Used . | . . . Hacking Detections 3 | . 3 . Full Trace Events 2 | . 2 . Feedback Events . | . . . Feedback Blocked . | . . . Robot Schematics Acquired . | . . . Robots Built . | . . . Authchips . | . . . Time . | . . . Total Robot Build Rating . | . . . Part Schematics Acquired . | . . . Parts Built . | . . . Authchips . | . . . Time . | . . . Total Part Build Rating . | . . . Parts Repaired . | . . . Time . | . . . Parts Recycled . | . . . Recycled Matter . | . . . Retrieved Matter . | . . . Retrieved Components . | . . . Parts Scanalyzed . | . . . Part Schematics Acquired . | . . . Parts Damaged . | . . . Bothacking | -11 -10 -10 ------------ Run | Yrd Mat Min Used RIF Installer . | . . . Robots Hacked . | . . . Non-combat . | . . . Combat . | . . . Robot Hacks Applied . | . . . Relay Couplers Released . | . . . Fabnet Peak Effective % . | . . . Robots Rewired . | . . . Allies Hacked . | . . . Hacks Repelled . | . . . Allies | -11 -10 -10 -------- Run | Yrd Mat Min Total Allies 1 | . . 1 Largest Group 1 | . . 1 Highest-Rated Group 31 | . . 31 Highest-Rated Ally 31 | . . 31 Total Orders . | . . . Ally Attacks 4 | . . 4 Total Damage 20 | . . 20 Kills 1 | . . 1 Allies Corrupted . | . . . Allies Melted . | . . . Intel | -11 -10 -10 ------- Run | Yrd Mat Min Active Infowar (turns) . | . . . Robot Analysis Total . | . . . Derelict Logs Recovered 1 | . . 1 Drone Launches . | . . . Drone Recoveries . | . . . Exploration | -11 -10 -10 ------------- Run | Yrd Mat Min Turns Passed 1233 | 40 927 266 Spaces Moved 876 | 37 634 205 Core 3 | 3 . . Treads . | . . . Legs 550 | . 345 205 Wheels 323 | 34 289 . Hover . | . . . Flight . | . . . Fastest Speed 50 | 50 80 120 Average Speed 105 | 77 102 120 Slowest Speed 190 | 80 190 190 Overloaded Moves . | . . . Propulsion Burnouts . | . . . Robots Hopped . | . . . Potential Cave-ins . | . . . Cave-ins Triggered . | . . . Exploration Rate (%) 47 | 3 87 53 Regions Visited 2 Branch Regions 1 Pre-discovered Areas . | . . . Known Exits Taken . | . . . Unknown Exits Taken 2 | 1 1 . Scrap Searched . | . . . Spaces Dug . | . . . Terrain Destroyed . | . . . Melee . | . . . Projectile . | . . . AOE . | . . . Terrain Rammed . | . . . Walls Destroyed . | . . . Machines Disabled . | . . . Actions | -11 -10 -10 --------- Run | Yrd Mat Min Total 1049 | 44 790 215 Wait 81 | . 78 3 Move 874 | 36 633 205 Hop . | . . . Pick Up 3 | 1 1 1 Fast Attach 9 | 6 3 . Attach . | . . . Detach . | . . . Swap 13 | 1 12 . Drop 3 | . 2 1 Fire 66 | . 61 5 Melee . | . . . Ram . | . . . Kick . | . . . Crush . | . . . Escape Stasis . | . . . Rewire . | . . . Trap . | . . . Miscellaneous . | . . . Route ------- -11/Scrapyard -10/Materials (discovered 3 exits: *Mat x2 / [*Min]) -10/Mines (discovered 1 exit: Mat) History --------- Turn | Location | Event 8 | -11/Scrapyard | Discovered new exit (range 15) 41 | -11/Scrapyard | Entered Materials 198 | -10/Materials | Discovered new exit (range 8) 316 | -10/Materials | Build established: Mutant 394 | -10/Materials | Discovered new exit (range 15) 437 | -10/Materials | Discovered new exit (range 16) 502 | -10/Materials | Core integrity fell below 50% 784 | -10/Materials | Build established: Scavenger-Mutant 968 | -10/Materials | Entered Mines 971 | -10/Mines | Received a Mining Laser from a helpful Derelict 987 | -10/Mines | Assembled infested the area 1125 | -10/Mines | Found a hidden stash of uninstalled traps 1152 | -10/Mines | Identified exit to Materials 1230 | -10/Mines | Core integrity fell below 20% 1234 | -10/Mines | Destroyed by D-53 Grenadier with Mini Grenade Launcher Last Messages --------------- 00976_ DT-D7J(g): "Mining lasers are a lot more useful than you might think..." 00979_ Dropped Sml. Laser. 00980_ Acquired Mining Laser. 00987_ ALERT: Infestation in the mines, dispatching Demolisher response squad. 01125_ A stash of uninstalled traps is collected here! 01133_ S-10 Pest destroyed. 01152_ Acquired derelict log, extracted data. Loading 1 Mines exit... 01223_ Aluminum Leg destroyed. 01225_ DT-D7J(g) destroyed. 01231_ Imp. Heat Sink destroyed. 01231_ Particle Gun destroyed. 01232_ Beam Cannon destroyed. 01232_ Ion Engine destroyed. 01234_ The unstable cave ceiling collapses. 01234_ Beamcaster crushed. 01234_ Aluminum Leg destroyed. Map ----- +----------------------------------------------------+ | | | | | ????????????????????????????????????????????? | | ????????????????????????????????????????????? | | ????????????????????????##??????????????????? | | ??????????????????????## ##??###????????????? | | ?????????????????????## #?# ##???????????? | | ????????????????????## ## #???????????? | | ???????????????????## ##%* #???????????? | | ??????????????????## ###%""" ##??????????? | | ?????????????????## ####*""" ###????????? | | ????????????????## [""" #????????? | | ???????????????## ### #????????? | | ??????####????## #?## ##????????? | | ?????## ##??## #??# ####?????????? | | ?????# #### ##??##*[##????????????? | | ?????# ## ######????#%##?????????????? | | ?????## ##??????####=#??????????????? | | ??????## ##??????## ##?????????????? | | ???????# ##???????# ####??????????? | | ???????## #????????## ##?????????? | | ????????## #???######### ##?####???? | | ?????????## #??## # ##### & ## #???? | | ??????????## #### ##?##& & #????? | | ???????????## ## ##?##& ##????? | | ????????????# @ #??# ##?????? | | ????????????## ### ###### ##??????? | | ?????????????#### # # #?# ###???????? | | ????????????????# #?# #?????##### | | ????????????????## # ### ####### # | | ?????????????????## * d ## | | ??????????????????### # | | ????????????????????### d ##### | | ??????????????????????# # #??## | | ??????????????????????#### #???## # | | ?????????????????????????## # ##????#### | | ??????????????????????????? #????????? | | ???????????????????????????? ## # #????????? | | ???????????????????????????? #?# ???????? | | ???????????????????????????? #?? ??????? | | ?????????????????????????????#?? ??????? | | ???????????????????????????????? ??????? | | ???????????????????????????????? ?????????? | | ???????????????????????????????? ?????????? | | ???????????????????????????????? ?????????? | | ???????????????????????????????? ?????????? | | ???????????????????????????????? ?????????? | | ???????????????????????????????? ?????????? | | ????????????????????????????????###?????????? | | ????????????????????????????????????????????? | +----------------------------------------------------+ Best States ------------- Heat Dissipation 39 Energy Generation 10 Energy Capacity 250 Matter Stores 300 Matter Capacity 300 Sight Range 16 Terrain Scan Density 10 Evasion (%) 55 Targeting Accuracy 5 Item Schematics ----------------- None Robot Schematics ------------------ None Fabricated ------------ Nothing Repaired ---------- Nothing Alien Tech Used ----------------- None Achievements -------------- None Challenges ------------ None Game ------ Seed RingDirectedConstruct Manual? 0 Play Time 00:18:36 Cumulative 15.1 hours Start 2025.07.14 @ 01:21:15 End 2025.07.14 @ 02:43:52 Sessions 1 Manual Loads 0 Difficulty Rogue Special Mode None Game No. 29 Rogue 29 Adventurer 0 Explorer 0 Win Type - Total 0 Types 0/0/0/0/0/0/0/0/0/0 Lore% 9 Gallery% 18 Achievement% 19 Wizard Run 0 Options --------- Layout 2 ASCII 0 Keyboard 0 Movement Mouse Keybinds 1 Fullscreen 2 Font 32/Smallcaps Map View 50x44 Zoom Use 0% Tactical HUD 1 Map Filters NONE Filters NONE Steam 1 RUN: a3766d8e-b567-4bca-91b7-f4506b079909